[Event "Late-Titled-Tuesday-Blitz-September-05-2023"]
[Site "Chess.com"]
[Date "2023.09.05"]
[Round "7"]
[White "BeautiFullMindChess"]
[Black "TheRigos"]
[Result "0-1"]
[WhiteElo "2362"]
[BlackElo "2558"]
[TimeControl "180+1"]
[EndTime "15:17:47 PDT"]
[Termination "TheRigos won on time"]

1. e4 {[%clk 0:03:00.9]} 1... e5 {[%clk 0:02:42.7]} 2. Nf3 {[%clk 0:03:00.6]}
2... Nc6 {[%clk 0:02:43.3]} 3. d4 {[%clk 0:03:01]} 3... exd4 {[%clk 0:02:42.3]}
4. Nxd4 {[%clk 0:03:01.9]} 4... Bc5 {[%clk 0:02:37]} 5. Nb3 {[%clk 0:03:01.9]}
5... Bb4+ {[%clk 0:02:36.1]} 6. Nc3 {[%clk 0:02:49.9]} 6... Nf6 {[%clk
0:02:33.9]} 7. Bd3 {[%clk 0:02:45.3]} 7... d5 {[%clk 0:02:24.1]} 8. exd5 {[%clk
0:02:42.9]} 8... Nxd5 {[%clk 0:02:16.9]} 9. O-O {[%clk 0:02:39.3]} 9... Nxc3
{[%clk 0:02:11.7]} 10. bxc3 {[%clk 0:02:38.1]} 10... Bxc3 {[%clk 0:02:11.5]} 11.
Ba3 {[%clk 0:02:27.4]} 11... Bxa1 {[%clk 0:01:55.7]} 12. Re1+ {[%clk 0:01:44.6]}
12... Be5 {[%clk 0:01:49.1]} 13. Qh5 {[%clk 0:01:34.8]} 13... Qf6 {[%clk
0:01:26.8]} 14. Bb5 {[%clk 0:00:58.7]} 14... Be6 {[%clk 0:01:16.9]} 15. Bxc6+
{[%clk 0:00:33.6]} 15... bxc6 {[%clk 0:01:16]} 16. Rxe5 {[%clk 0:00:34.3]} 16...
O-O-O {[%clk 0:01:10.7]} 17. Qe2 {[%clk 0:00:30.8]} 17... Rd1+ {[%clk
0:01:06.7]} 18. Qxd1 {[%clk 0:00:27.4]} 18... Qxe5 {[%clk 0:01:07.3]} 19. Qf1
{[%clk 0:00:19.4]} 19... Rd8 {[%clk 0:00:52.6]} 20. Qa6+ {[%clk 0:00:15.4]}
20... Kb8 {[%clk 0:00:53]} 21. g3 {[%clk 0:00:10.6]} 21... Rd1+ {[%clk
0:00:39.1]} 22. Kg2 {[%clk 0:00:09.5]} 22... Qh5 {[%clk 0:00:31.2]} 23. f3
{[%clk 0:00:05]} 23... Qh3+ {[%clk 0:00:21.7]} 24. Kf2 {[%clk 0:00:05.2]} 24...
Qxh2+ {[%clk 0:00:22.6]} 25. Ke3 {[%clk 0:00:05.8]} 25... Qg1+ {[%clk
0:00:14.3]} 26. Kf4 {[%clk 0:00:06.2]} 26... g5+ {[%clk 0:00:14.1]} 27. Ke5
{[%clk 0:00:05.1]} 27... Qxg3+ {[%clk 0:00:13.9]} 28. Kf6 {[%clk 0:00:06]} 28...
Qf4+ {[%clk 0:00:14]} 29. Ke7 {[%clk 0:00:06.1]} 29... g4 {[%clk 0:00:08.6]} 30.
Nc5 {[%clk 0:00:04.7]} 30... Qg5+ {[%clk 0:00:08.6]} 0-1

[Event "Late-Titled-Tuesday-Blitz-September-05-2023"]
[Site "Chess.com"]
[Date "2023.09.05"]
[Round "7"]
[White "boguszp"]
[Black "Nekoo04"]
[Result "0-1"]
[WhiteElo "2054"]
[BlackElo "2303"]
[TimeControl "180+1"]
[EndTime "15:17:52 PDT"]
[Termination "Nekoo04 won on time"]

1. d4 {[%clk 0:03:00.9]} 1... Nf6 {[%clk 0:02:58.5]} 2. Bf4 {[%clk 0:02:59.3]}
2... d5 {[%clk 0:02:57.7]} 3. Nf3 {[%clk 0:02:57.7]} 3... c5 {[%clk 0:02:57.7]}
4. c3 {[%clk 0:02:56.2]} 4... Nc6 {[%clk 0:02:57.7]} 5. e3 {[%clk 0:02:56.2]}
5... Qb6 {[%clk 0:02:57.5]} 6. Qb3 {[%clk 0:02:54]} 6... c4 {[%clk 0:02:57.7]}
7. Qc2 {[%clk 0:02:37.7]} 7... Bf5 {[%clk 0:02:55.9]} 8. Qc1 {[%clk 0:02:36.4]}
8... h6 {[%clk 0:02:54.9]} 9. Nbd2 {[%clk 0:02:34.2]} 9... e6 {[%clk 0:02:54.3]}
10. h3 {[%clk 0:02:28.4]} 10... Qd8 {[%clk 0:02:48.6]} 11. Be2 {[%clk
0:02:23.2]} 11... Bd6 {[%clk 0:02:48.2]} 12. Ne5 {[%clk 0:02:21.4]} 12... Bxe5
{[%clk 0:02:24.4]} 13. Bxe5 {[%clk 0:02:15.3]} 13... Nxe5 {[%clk 0:02:20.8]} 14.
dxe5 {[%clk 0:02:15.8]} 14... Nd7 {[%clk 0:02:21.4]} 15. Nf3 {[%clk 0:02:01.3]}
15... Qc7 {[%clk 0:02:18.3]} 16. Nd4 {[%clk 0:01:50]} 16... Qxe5 {[%clk
0:02:15.5]} 17. f4 {[%clk 0:01:36.9]} 17... Qf6 {[%clk 0:02:14.8]} 18. O-O
{[%clk 0:01:30.4]} 18... Nc5 {[%clk 0:02:11.3]} 19. Nxf5 {[%clk 0:01:22.2]}
19... Qxf5 {[%clk 0:02:10.1]} 20. Bf3 {[%clk 0:01:20.6]} 20... O-O {[%clk
0:01:58.7]} 21. Qd2 {[%clk 0:01:09.2]} 21... Rad8 {[%clk 0:01:55]} 22. g4 {[%clk
0:00:49.5]} 22... Qg6 {[%clk 0:01:32.1]} 23. Kh2 {[%clk 0:00:41.1]} 23... Nd3
{[%clk 0:01:25.2]} 24. Rg1 {[%clk 0:00:32.4]} 24... e5 {[%clk 0:01:24.2]} 25. f5
{[%clk 0:00:29.7]} 25... Qc6 {[%clk 0:01:17.5]} 26. Rg2 {[%clk 0:00:20.4]} 26...
e4 {[%clk 0:01:13.9]} 27. Be2 {[%clk 0:00:20.7]} 27... Qd6+ {[%clk 0:01:10.3]}
28. Kh1 {[%clk 0:00:19]} 28... g6 {[%clk 0:01:06.9]} 29. Rf1 {[%clk 0:00:17.5]}
29... Kh7 {[%clk 0:01:02.7]} 30. Bxd3 {[%clk 0:00:15.8]} 30... cxd3 {[%clk
0:01:02.2]} 31. Qf2 {[%clk 0:00:14.3]} 31... Qe7 {[%clk 0:00:49.4]} 32. Qf4
{[%clk 0:00:12.6]} 32... g5 {[%clk 0:00:37.2]} 33. Qf2 {[%clk 0:00:10.3]} 33...
f6 {[%clk 0:00:37.3]} 34. h4 {[%clk 0:00:08.5]} 34... Kg7 {[%clk 0:00:33.6]} 35.
Qg3 {[%clk 0:00:04.9]} 35... b5 {[%clk 0:00:28.2]} 36. Qh3 {[%clk 0:00:04.8]}
36... b4 {[%clk 0:00:25.1]} 37. Rh2 {[%clk 0:00:04.5]} 37... Rh8 {[%clk
0:00:24.9]} 0-1

[Event "Late-Titled-Tuesday-Blitz-September-05-2023"]
[Site "Chess.com"]
[Date "2023.09.05"]
[Round "7"]
[White "djano"]
[Black "Grossboss19"]
[Result "1-0"]
[WhiteElo "2627"]
[BlackElo "2488"]
[TimeControl "180+1"]
[EndTime "15:17:55 PDT"]
[Termination "djano won by checkmate"]

1. d4 {[%clk 0:03:00.9]} 1... Nf6 {[%clk 0:02:59.3]} 2. Bf4 {[%clk 0:03:01.1]}
2... d5 {[%clk 0:02:57.2]} 3. e3 {[%clk 0:02:58.6]} 3... c5 {[%clk 0:02:56.9]}
4. Nf3 {[%clk 0:02:58.8]} 4... Nc6 {[%clk 0:02:48.7]} 5. Nbd2 {[%clk 0:02:57.9]}
5... Bg4 {[%clk 0:02:44.8]} 6. c3 {[%clk 0:02:49.2]} 6... e6 {[%clk 0:02:38.1]}
7. h3 {[%clk 0:02:47.4]} 7... Bh5 {[%clk 0:02:28.8]} 8. Bb5 {[%clk 0:02:46.8]}
8... Bd6 {[%clk 0:02:16.9]} 9. Qa4 {[%clk 0:02:37.9]} 9... Qc7 {[%clk
0:01:47.9]} 10. dxc5 {[%clk 0:02:17.7]} 10... Bxf4 {[%clk 0:01:41.7]} 11. Qxf4
{[%clk 0:02:18.6]} 11... Qxf4 {[%clk 0:01:33.2]} 12. exf4 {[%clk 0:02:18.4]}
12... Bxf3 {[%clk 0:01:31.8]} 13. Nxf3 {[%clk 0:02:09.8]} 13... Ne4 {[%clk
0:01:30.5]} 14. Nd4 {[%clk 0:02:03.8]} 14... Kd7 {[%clk 0:01:27]} 15. Nb3 {[%clk
0:01:51.2]} 15... a6 {[%clk 0:01:05.5]} 16. Bd3 {[%clk 0:01:50.3]} 16... Nf6
{[%clk 0:01:01]} 17. Nd4 {[%clk 0:01:38.7]} 17... Rhc8 {[%clk 0:00:55.2]} 18. b4
{[%clk 0:01:38.2]} 18... a5 {[%clk 0:00:47.9]} 19. Bb5 {[%clk 0:01:33.5]} 19...
Ne4 {[%clk 0:00:35.6]} 20. Ne2 {[%clk 0:00:51.9]} 20... Ke7 {[%clk 0:00:22.9]}
21. Bxc6 {[%clk 0:00:51.2]} 21... Rxc6 {[%clk 0:00:14.8]} 22. f3 {[%clk
0:00:51.7]} 22... Nf6 {[%clk 0:00:13.8]} 23. Nd4 {[%clk 0:00:50.3]} 23... Rcc8
{[%clk 0:00:13.5]} 24. a3 {[%clk 0:00:47.9]} 24... b6 {[%clk 0:00:10.5]} 25.
cxb6 {[%clk 0:00:45.2]} 25... Rxc3 {[%clk 0:00:10.4]} 26. b5 {[%clk 0:00:32.7]}
26... Nd7 {[%clk 0:00:08.5]} 27. b7 {[%clk 0:00:30.7]} 27... Re8 {[%clk
0:00:06]} 28. Nc6+ {[%clk 0:00:31.1]} 28... Kd6 {[%clk 0:00:06.2]} 29. Kd2
{[%clk 0:00:30.3]} 29... Rc5 {[%clk 0:00:03.9]} 30. a4 {[%clk 0:00:29.2]} 30...
Nb8 {[%clk 0:00:01.7]} 31. Nxa5 {[%clk 0:00:29.4]} 31... Kc7 {[%clk 0:00:02.1]}
32. Rab1 {[%clk 0:00:23.2]} 32... Kb6 {[%clk 0:00:02.4]} 33. Nb3 {[%clk
0:00:21.5]} 33... Rc4 {[%clk 0:00:02.7]} 34. a5+ {[%clk 0:00:20.1]} 34... Kxb5
{[%clk 0:00:01.1]} 35. Nd4+ {[%clk 0:00:17.2]} 35... Ka6 {[%clk 0:00:01.3]} 36.
Kd3 {[%clk 0:00:16.1]} 36... Rc7 {[%clk 0:00:01.4]} 37. Rb6+ {[%clk 0:00:14.5]}
37... Ka7 {[%clk 0:00:01.4]} 38. Nb5# {[%clk 0:00:13.2]} 1-0

[Event "Late-Titled-Tuesday-Blitz-September-05-2023"]
[Site "Chess.com"]
[Date "2023.09.05"]
[Round "7"]
[White "Langua_Chess"]
[Black "ChessSwole"]
[Result "0-1"]
[WhiteElo "2482"]
[BlackElo "2676"]
[TimeControl "180+1"]
[EndTime "15:17:55 PDT"]
[Termination "ChessSwole won by checkmate"]

1. d4 {[%clk 0:03:00.9]} 1... Nf6 {[%clk 0:02:59.7]} 2. c4 {[%clk 0:03:01.5]}
2... e6 {[%clk 0:03:00]} 3. Nc3 {[%clk 0:03:02.1]} 3... Bb4 {[%clk 0:02:59.7]}
4. f3 {[%clk 0:03:01.8]} 4... d5 {[%clk 0:02:55.8]} 5. a3 {[%clk 0:03:01.6]}
5... Bxc3+ {[%clk 0:02:55.9]} 6. bxc3 {[%clk 0:03:01.8]} 6... c5 {[%clk
0:02:52.9]} 7. cxd5 {[%clk 0:02:55.7]} 7... Nxd5 {[%clk 0:02:53.8]} 8. Qd3
{[%clk 0:02:17.3]} 8... f5 {[%clk 0:02:52.4]} 9. e4 {[%clk 0:02:11.9]} 9... fxe4
{[%clk 0:02:44]} 10. fxe4 {[%clk 0:02:11.7]} 10... Nf6 {[%clk 0:02:26.2]} 11.
Nf3 {[%clk 0:02:11.1]} 11... O-O {[%clk 0:02:24.1]} 12. Bg5 {[%clk 0:02:08.8]}
12... Qa5 {[%clk 0:02:21.4]} 13. e5 {[%clk 0:01:41.8]} 13... Ne4 {[%clk
0:02:09.6]} 14. Rc1 {[%clk 0:01:27.1]} 14... Rxf3 {[%clk 0:02:06.5]} 15. gxf3
{[%clk 0:00:44.1]} 15... Nxg5 {[%clk 0:02:06.1]} 16. Rg1 {[%clk 0:00:44.8]}
16... Nf7 {[%clk 0:01:44.1]} 17. f4 {[%clk 0:00:44.8]} 17... cxd4 {[%clk
0:01:21.7]} 18. Qg3 {[%clk 0:00:44.9]} 18... g6 {[%clk 0:01:16.2]} 19. Bd3
{[%clk 0:00:45.5]} 19... Qxa3 {[%clk 0:01:11.2]} 20. Kf2 {[%clk 0:00:34.8]}
20... Kf8 {[%clk 0:01:02.5]} 21. Bxg6 {[%clk 0:00:34]} 21... hxg6 {[%clk
0:01:02.9]} 22. Qxg6 {[%clk 0:00:31.7]} 22... Nc6 {[%clk 0:00:54.6]} 23. Qg7+
{[%clk 0:00:24]} 23... Ke8 {[%clk 0:00:52.3]} 24. Qf6 {[%clk 0:00:23.1]} 24...
Qe7 {[%clk 0:00:36.1]} 25. Rg8+ {[%clk 0:00:19.3]} 25... Kd7 {[%clk 0:00:36.6]}
26. Qg6 {[%clk 0:00:12.1]} 26... b6 {[%clk 0:00:33.6]} 27. cxd4 {[%clk
0:00:08.6]} 27... Bb7 {[%clk 0:00:25.1]} 28. d5 {[%clk 0:00:08.2]} 28... Rxg8
{[%clk 0:00:16.5]} 29. dxc6+ {[%clk 0:00:07.5]} 29... Bxc6 {[%clk 0:00:17.4]}
30. Qxg8 {[%clk 0:00:08]} 30... Nh6 {[%clk 0:00:15.2]} 31. Qb8 {[%clk
0:00:03.2]} 31... Qh4+ {[%clk 0:00:12.1]} 32. Ke3 {[%clk 0:00:02.6]} 32... Nf5+
{[%clk 0:00:12.3]} 33. Kd3 {[%clk 0:00:02.4]} 33... Qh3+ {[%clk 0:00:12.2]} 34.
Kc4 {[%clk 0:00:02.4]} 34... Bd5+ {[%clk 0:00:11.8]} 35. Kb4 {[%clk 0:00:02.1]}
35... Qb3# {[%clk 0:00:11.8]} 0-1

[Event "Late-Titled-Tuesday-Blitz-September-05-2023"]
[Site "Chess.com"]
[Date "2023.09.05"]
[Round "7"]
[White "Bauman_Guy"]
[Black "BillieKimbah"]
[Result "1-0"]
[WhiteElo "2906"]
[BlackElo "3034"]
[TimeControl "180+1"]
[EndTime "15:17:57 PDT"]
[Termination "Bauman_Guy won on time"]

1. e4 {[%clk 0:03:00.9]} 1... c5 {[%clk 0:03:00.1]} 2. Nf3 {[%clk 0:03:01.1]}
2... e6 {[%clk 0:03:00.1]} 3. d4 {[%clk 0:03:01.7]} 3... cxd4 {[%clk 0:03:01]}
4. Nxd4 {[%clk 0:03:02.5]} 4... Nc6 {[%clk 0:03:01.6]} 5. Nc3 {[%clk 0:03:03.1]}
5... Qc7 {[%clk 0:02:59.9]} 6. g3 {[%clk 0:03:03.1]} 6... a6 {[%clk 0:02:57.3]}
7. Bg2 {[%clk 0:03:03.2]} 7... Nf6 {[%clk 0:02:57.3]} 8. O-O {[%clk 0:03:02.9]}
8... h5 {[%clk 0:02:55.3]} 9. h3 {[%clk 0:03:02.7]} 9... d6 {[%clk 0:02:50.9]}
10. a4 {[%clk 0:02:59.7]} 10... Be7 {[%clk 0:02:50.3]} 11. Nxc6 {[%clk
0:02:59.8]} 11... bxc6 {[%clk 0:02:49.6]} 12. a5 {[%clk 0:03:00.7]} 12... Bb7
{[%clk 0:02:48.4]} 13. Be3 {[%clk 0:02:42.7]} 13... c5 {[%clk 0:02:47.5]} 14.
Re1 {[%clk 0:02:28.7]} 14... Rd8 {[%clk 0:02:37.2]} 15. Bg5 {[%clk 0:02:25.8]}
15... Nh7 {[%clk 0:02:12.5]} 16. Bxe7 {[%clk 0:02:17.2]} 16... Qxe7 {[%clk
0:02:13.4]} 17. Qxh5 {[%clk 0:02:16.1]} 17... O-O {[%clk 0:02:11.3]} 18. Na4
{[%clk 0:02:08.2]} 18... Nf6 {[%clk 0:02:08.2]} 19. Qe2 {[%clk 0:02:05.3]} 19...
Nd7 {[%clk 0:02:00.2]} 20. Red1 {[%clk 0:01:59.8]} 20... Ne5 {[%clk 0:01:51.7]}
21. Nb6 {[%clk 0:01:58.1]} 21... f5 {[%clk 0:01:51.8]} 22. f4 {[%clk 0:01:55]}
22... Nc6 {[%clk 0:01:43.9]} 23. c3 {[%clk 0:01:50.5]} 23... fxe4 {[%clk
0:01:32.9]} 24. Qxe4 {[%clk 0:01:50.5]} 24... Nxa5 {[%clk 0:01:28.4]} 25. Nd5
{[%clk 0:01:16.2]} 25... Qf7 {[%clk 0:01:13]} 26. Rxa5 {[%clk 0:01:14.3]} 26...
Bxd5 {[%clk 0:01:09.2]} 27. Qe2 {[%clk 0:01:13.7]} 27... Bxg2 {[%clk 0:00:50.8]}
28. Kxg2 {[%clk 0:01:14.6]} 28... Qb7+ {[%clk 0:00:47]} 29. Kh2 {[%clk
0:01:13.4]} 29... Rfe8 {[%clk 0:00:33.3]} 30. Rxa6 {[%clk 0:01:10.1]} 30... Rb8
{[%clk 0:00:21.2]} 31. Rd2 {[%clk 0:01:05.3]} 31... e5 {[%clk 0:00:14.7]} 32. f5
{[%clk 0:00:45]} 32... d5 {[%clk 0:00:14.6]} 33. Rg6 {[%clk 0:00:42.1]} 33...
Qf7 {[%clk 0:00:10.9]} 34. Qg4 {[%clk 0:00:39.1]} 34... Kf8 {[%clk 0:00:04.7]}
35. Rf2 {[%clk 0:00:29.8]} 35... e4 {[%clk 0:00:03.3]} 36. f6 {[%clk 0:00:29.4]}
36... e3 {[%clk 0:00:01.9]} 37. fxg7+ {[%clk 0:00:23.7]} 37... Kg8 {[%clk
0:00:02.3]} 38. Rxf7 {[%clk 0:00:19.7]} 38... Rxb2+ {[%clk 0:00:02.5]} 39. Kg1
{[%clk 0:00:18.7]} 39... Rb1+ {[%clk 0:00:01.6]} 40. Rf1 {[%clk 0:00:17.9]} 1-0

[Event "Late-Titled-Tuesday-Blitz-September-05-2023"]
[Site "Chess.com"]
[Date "2023.09.05"]
[Round "7"]
[White "temus_galaktionov"]
[Black "subham777"]
[Result "1-0"]
[WhiteElo "2813"]
[BlackElo "2557"]
[TimeControl "180+1"]
[EndTime "15:17:59 PDT"]
[Termination "temus_galaktionov won by resignation"]

1. d4 {[%clk 0:03:00.9]} 1... d5 {[%clk 0:02:59.7]} 2. Nf3 {[%clk 0:02:57.4]}
2... Nf6 {[%clk 0:02:59.3]} 3. c4 {[%clk 0:02:51.7]} 3... e6 {[%clk 0:02:57.7]}
4. Nc3 {[%clk 0:02:50.9]} 4... Be7 {[%clk 0:02:57.7]} 5. Bf4 {[%clk 0:02:48.2]}
5... O-O {[%clk 0:02:57.1]} 6. e3 {[%clk 0:02:47.6]} 6... Ne4 {[%clk 0:02:57.3]}
7. Qc2 {[%clk 0:02:40.6]} 7... f5 {[%clk 0:02:55.7]} 8. cxd5 {[%clk 0:02:38.6]}
8... exd5 {[%clk 0:02:55.1]} 9. Nxd5 {[%clk 0:02:38.3]} 9... c6 {[%clk
0:02:39.8]} 10. Nc7 {[%clk 0:02:15.6]} 10... Bb4+ {[%clk 0:02:11]} 11. Kd1
{[%clk 0:02:08.2]} 11... Bd6 {[%clk 0:01:55]} 12. Bxd6 {[%clk 0:02:06.1]} 12...
Nxd6 {[%clk 0:01:50]} 13. Nxa8 {[%clk 0:02:05.8]} 13... Be6 {[%clk 0:01:44.9]}
14. Qc5 {[%clk 0:02:04.1]} 14... Ne4 {[%clk 0:01:40.9]} 15. Qc2 {[%clk 0:02:01]}
15... Nd7 {[%clk 0:01:35.7]} 16. Bc4 {[%clk 0:01:57.9]} 16... Bxc4 {[%clk
0:01:21.4]} 17. Qxc4+ {[%clk 0:01:58.8]} 17... Kh8 {[%clk 0:01:21.5]} 18. Ke2
{[%clk 0:01:59.3]} 18... Qxa8 {[%clk 0:01:20.2]} 19. Nd2 {[%clk 0:01:59.5]}
19... Nef6 {[%clk 0:01:09.9]} 20. Nf3 {[%clk 0:01:37.4]} 20... Qe8 {[%clk
0:01:05.7]} 21. Rhe1 {[%clk 0:01:28.8]} 21... Ne4 {[%clk 0:01:01.4]} 22. Qb3
{[%clk 0:01:18.7]} 22... Nb6 {[%clk 0:00:52.8]} 23. h3 {[%clk 0:01:07.6]} 23...
g5 {[%clk 0:00:49.3]} 24. Ne5 {[%clk 0:01:06]} 24... f4 {[%clk 0:00:36.2]} 25.
f3 {[%clk 0:00:49.6]} 25... Ng3+ {[%clk 0:00:34.4]} 26. Kf2 {[%clk 0:00:49.8]}
26... Qh5 {[%clk 0:00:24.8]} 27. exf4 {[%clk 0:00:44.3]} 27... gxf4 {[%clk
0:00:25.7]} 28. Qe6 {[%clk 0:00:39.5]} 28... Nd5 {[%clk 0:00:17.5]} 29. Ng4
{[%clk 0:00:38.3]} 29... Qh4 {[%clk 0:00:11.9]} 30. Kg1 {[%clk 0:00:33.8]} 30...
Nf5 {[%clk 0:00:09.3]} 31. Re5 {[%clk 0:00:20.2]} 31... Nde3 {[%clk 0:00:07.9]}
32. Nxe3 {[%clk 0:00:14.3]} 32... Nxe3 {[%clk 0:00:08.8]} 33. Qe7 {[%clk
0:00:10.7]} 33... Qxe7 {[%clk 0:00:04.4]} 34. Rxe7 {[%clk 0:00:11.6]} 34... Rg8
{[%clk 0:00:04.8]} 35. g4 {[%clk 0:00:11.7]} 35... fxg3 {[%clk 0:00:04.6]} 36.
Rxe3 {[%clk 0:00:11]} 36... Rd8 {[%clk 0:00:03.3]} 37. Rae1 {[%clk 0:00:10.3]}
1-0

[Event "Late-Titled-Tuesday-Blitz-September-05-2023"]
[Site "Chess.com"]
[Date "2023.09.05"]
[Round "7"]
[White "Boorchess"]
[Black "Truequitos"]
[Result "0-1"]
[WhiteElo "2548"]
[BlackElo "2446"]
[TimeControl "180+1"]
[EndTime "15:18:01 PDT"]
[Termination "Truequitos won on time"]

1. d4 {[%clk 0:03:00.9]} 1... Nf6 {[%clk 0:02:58.1]} 2. c4 {[%clk 0:03:00.6]}
2... d6 {[%clk 0:02:57.6]} 3. Nf3 {[%clk 0:02:58.7]} 3... g6 {[%clk 0:02:54]} 4.
Nc3 {[%clk 0:02:55.9]} 4... Bf5 {[%clk 0:02:53.7]} 5. Nh4 {[%clk 0:02:50.2]}
5... Bd7 {[%clk 0:02:51]} 6. e4 {[%clk 0:02:49.2]} 6... e5 {[%clk 0:02:49.7]} 7.
Nf3 {[%clk 0:02:47.9]} 7... exd4 {[%clk 0:02:49.3]} 8. Nxd4 {[%clk 0:02:47.4]}
8... Bg7 {[%clk 0:02:49.6]} 9. f3 {[%clk 0:02:41.2]} 9... O-O {[%clk 0:02:49.3]}
10. Be3 {[%clk 0:02:41]} 10... Nc6 {[%clk 0:02:47.5]} 11. Be2 {[%clk 0:02:37.6]}
11... Re8 {[%clk 0:02:40.7]} 12. O-O {[%clk 0:02:34.5]} 12... Nh5 {[%clk
0:02:08.9]} 13. Nxc6 {[%clk 0:02:21.1]} 13... bxc6 {[%clk 0:02:03.5]} 14. Qd2
{[%clk 0:02:10.8]} 14... Be6 {[%clk 0:01:48.6]} 15. Rac1 {[%clk 0:02:02.9]}
15... Qh4 {[%clk 0:01:40.3]} 16. Bf2 {[%clk 0:01:43.3]} 16... Qf4 {[%clk
0:01:38.7]} 17. Be3 {[%clk 0:01:40]} 17... Qh4 {[%clk 0:01:37.5]} 18. Bf2 {[%clk
0:00:54.3]} 18... Qe7 {[%clk 0:01:21.4]} 19. Rfe1 {[%clk 0:00:52.2]} 19... Be5
{[%clk 0:01:07.8]} 20. g3 {[%clk 0:00:46.6]} 20... a5 {[%clk 0:00:50.5]} 21. b3
{[%clk 0:00:39.3]} 21... Bg7 {[%clk 0:00:49.2]} 22. g4 {[%clk 0:00:27.9]} 22...
Nf6 {[%clk 0:00:45.4]} 23. Bf1 {[%clk 0:00:23.6]} 23... h5 {[%clk 0:00:39.4]}
24. g5 {[%clk 0:00:19]} 24... Nd7 {[%clk 0:00:37.2]} 25. Nd5 {[%clk 0:00:17.7]}
25... cxd5 {[%clk 0:00:34.8]} 26. exd5 {[%clk 0:00:17.7]} 26... Ne5 {[%clk
0:00:35.1]} 27. Bg2 {[%clk 0:00:17]} 27... Bh3 {[%clk 0:00:30.2]} 28. f4 {[%clk
0:00:10.4]} 28... Bxg2 {[%clk 0:00:28]} 29. Kxg2 {[%clk 0:00:10.5]} 29... Qd7
{[%clk 0:00:20.6]} 30. fxe5 {[%clk 0:00:10.5]} 30... Qg4+ {[%clk 0:00:20.8]} 31.
Bg3 {[%clk 0:00:09.4]} 31... h4 {[%clk 0:00:16.9]} 32. Qd3 {[%clk 0:00:03.6]}
32... hxg3 {[%clk 0:00:15.5]} 33. Re4 {[%clk 0:00:03.8]} 33... Qxg5 {[%clk
0:00:13.5]} 34. Rg1 {[%clk 0:00:03.2]} 34... Bxe5 {[%clk 0:00:12.6]} 35. h4
{[%clk 0:00:02.6]} 35... Qf5 {[%clk 0:00:11.2]} 36. Rf1 {[%clk 0:00:02.7]} 36...
Qh5 {[%clk 0:00:10.1]} 37. Qe3 {[%clk 0:00:01.8]} 37... f5 {[%clk 0:00:10.1]}
0-1

[Event "Late-Titled-Tuesday-Blitz-September-05-2023"]
[Site "Chess.com"]
[Date "2023.09.05"]
[Round "7"]
[White "talaicito"]
[Black "kacprekt"]
[Result "0-1"]
[WhiteElo "2265"]
[BlackElo "2423"]
[TimeControl "180+1"]
[EndTime "15:18:01 PDT"]
[Termination "kacprekt won on time"]

1. d4 {[%clk 0:03:00.9]} 1... g6 {[%clk 0:02:58.9]} 2. Nc3 {[%clk 0:02:59.3]}
2... Bg7 {[%clk 0:02:59.5]} 3. e4 {[%clk 0:02:59.6]} 3... d6 {[%clk 0:02:59.9]}
4. Bf4 {[%clk 0:03:00.1]} 4... a6 {[%clk 0:03:00.3]} 5. Qd2 {[%clk 0:03:00.5]}
5... b5 {[%clk 0:03:00]} 6. h4 {[%clk 0:02:53.9]} 6... h6 {[%clk 0:02:53.3]} 7.
f3 {[%clk 0:02:37.2]} 7... Bb7 {[%clk 0:02:53.4]} 8. h5 {[%clk 0:02:34.7]} 8...
g5 {[%clk 0:02:52.9]} 9. Be3 {[%clk 0:02:35.3]} 9... Nd7 {[%clk 0:02:52.5]} 10.
Nge2 {[%clk 0:02:29.5]} 10... Rc8 {[%clk 0:02:51.3]} 11. Ng3 {[%clk 0:02:23.8]}
11... e6 {[%clk 0:02:50.1]} 12. d5 {[%clk 0:02:19.9]} 12... Ne7 {[%clk
0:02:44.5]} 13. Bd4 {[%clk 0:02:06.9]} 13... e5 {[%clk 0:02:41.4]} 14. Be3
{[%clk 0:01:52.2]} 14... O-O {[%clk 0:02:41]} 15. Bd3 {[%clk 0:01:50.3]} 15...
Nc5 {[%clk 0:02:35.8]} 16. Bxg5 {[%clk 0:01:31.3]} 16... hxg5 {[%clk 0:02:35.8]}
17. h6 {[%clk 0:01:31.4]} 17... Bf6 {[%clk 0:02:33.2]} 18. Nh5 {[%clk
0:01:31.9]} 18... Ng6 {[%clk 0:02:31.7]} 19. Ne2 {[%clk 0:01:24.7]} 19... Kh8
{[%clk 0:02:27.4]} 20. Neg3 {[%clk 0:01:21.9]} 20... Nf4 {[%clk 0:02:22.5]} 21.
Nf5 {[%clk 0:01:15.1]} 21... Ncxd3+ {[%clk 0:02:16.6]} 22. cxd3 {[%clk
0:01:14.8]} 22... c6 {[%clk 0:02:06.1]} 23. dxc6 {[%clk 0:01:10.6]} 23... Bxc6
{[%clk 0:02:01.9]} 24. Nhg7 {[%clk 0:00:47.3]} 24... Bd7 {[%clk 0:01:56.6]} 25.
g3 {[%clk 0:00:46.2]} 25... Ng6 {[%clk 0:01:50.2]} 26. Nxd6 {[%clk 0:00:43.5]}
26... Rc6 {[%clk 0:01:44.4]} 27. Ndf5 {[%clk 0:00:23.7]} 27... Kh7 {[%clk
0:01:43.5]} 28. Nh5 {[%clk 0:00:15.2]} 28... Bxf5 {[%clk 0:01:36.1]} 29. exf5
{[%clk 0:00:14.5]} 29... Nh8 {[%clk 0:01:23.3]} 30. g4 {[%clk 0:00:13.5]} 30...
Rd6 {[%clk 0:01:22.5]} 31. O-O-O {[%clk 0:00:12.3]} 31... Be7 {[%clk 0:01:05]}
32. Ng3 {[%clk 0:00:11.9]} 32... f6 {[%clk 0:01:04.2]} 33. Ne4 {[%clk
0:00:12.1]} 33... Rd4 {[%clk 0:01:01.7]} 34. Kb1 {[%clk 0:00:12.1]} 34... Bb4
{[%clk 0:01:00.1]} 35. Qc2 {[%clk 0:00:11.4]} 35... Nf7 {[%clk 0:00:54.3]} 36.
Qh2 {[%clk 0:00:11.4]} 36... Nd6 {[%clk 0:00:50.4]} 37. Qh5 {[%clk 0:00:10.5]}
37... Qe8 {[%clk 0:00:47.6]} 38. Qh2 {[%clk 0:00:08.6]} 38... Nxe4 {[%clk
0:00:46.2]} 39. fxe4 {[%clk 0:00:08.3]} 39... Qf7 {[%clk 0:00:45.4]} 40. a3
{[%clk 0:00:08.3]} 40... Ba5 {[%clk 0:00:43.6]} 41. Qe2 {[%clk 0:00:07.1]} 41...
Rfd8 {[%clk 0:00:43.6]} 42. Rd2 {[%clk 0:00:07.3]} 42... Bxd2 {[%clk 0:00:43.1]}
43. Qxd2 {[%clk 0:00:07.7]} 43... Rxd3 {[%clk 0:00:43.8]} 44. Qa5 {[%clk
0:00:07.6]} 44... Rd1+ {[%clk 0:00:40.3]} 45. Rxd1 {[%clk 0:00:07.4]} 45...
Rxd1+ {[%clk 0:00:40.7]} 46. Kc2 {[%clk 0:00:07.5]} 46... Rd4 {[%clk 0:00:35.5]}
47. b3 {[%clk 0:00:02.6]} 47... Rxe4 {[%clk 0:00:33.4]} 48. Qxa6 {[%clk
0:00:01.4]} 48... Qc7+ {[%clk 0:00:29.6]} 0-1